[Event "46th Barbera del Valles Open-A 2024"]
[Site "Barbera del Valles"]
[Date "2024.07.05"]
[Round "2.8"]
[White "Lau, Lut Yin Luke"]
[Black "Munoz, Miguel"]
[Result "1/2-1/2"]
[ECO "B01"]
[WhiteElo "2120"]
[BlackElo "2364"]
[Annotator "TA"]
[PlyCount "43"]
[EventDate "2024.06.25"]
[EventType "swiss"]
[EventCountry "ESP"]
[SourceTitle "playchess.com"]
[Source "ChessBase"]
[SourceQuality "1"]
[TimeControl "5400+30"]

{[%evp 9,43,25,17,22,8,7,13,27,25,11,20,-22,0,0,31,18,25,24,35,27,28,27,50,52,60,48,41,48,56,55,64,66,59,0,73,72]} 1. e4 {[%emt 0:00:06]} d5 {[%emt 0:00:14]} 2. exd5 {[%emt 0:00:20]} Qxd5 {[%emt 0:00:07]} 3. Nf3 {[%emt 0:00:31]} Bg4 {[%emt 0:02:07]} 4. Be2 {[%emt 0:00:58]} Nc6 {[%emt 0:00:14]} 5. h3 {[%emt 0:00:29]} Bxf3 {[%emt 0:02:17]} 6. Bxf3 {[%emt 0:00:11]} Qe6+ {[%emt 0:00:17]} 7. Qe2 {[%emt 0:00:09] White wants to play Qxe6.} Qxe2+ {[%emt 0:00:09]} 8. Bxe2 {[%emt 0:00:13] The position is equal.} O-O-O {[%emt 0:00:31]} 9. O-O {[%emt 0:02:40]} e5 {[%emt 0:00:46]} 10. Re1 {[%emt 0:02:12]} f5 {[%emt 0:05:11]} 11. d3 {[%emt 0:01:36]} g6 {[%emt 0:02:24]} 12. Nd2 {[%emt 0:04:01]} Bg7 {[%emt 0:01:32]} 13. c3 {[%emt 0:02:20]} Nge7 {[%emt 0:00:16]} 14. Nc4 {[%emt 0:02:10]} Nd5 {[%emt 0:04:11]} 15. a4 {[%emt 0:02:10]} a5 {[%emt 0:03:52]} 16. Bd2 {[%emt 0:08:19]} Rhe8 {[%emt 0:01:40]} 17. Rad1 {[%emt 0:05:01]} Bf6 {[%emt 0:05:24]} 18. Bf3 {[%emt 0:13:02]} h5 {[%emt 0:02:23]} 19. g3 {[%emt 0:10:00]} Nde7 {[%emt 0:03:15]} 20. Be3 {[%emt 0:02:53] White is more active.} Nd5 {[%emt 0:01:04]} 21. Bc5 {[%emt 0:01:26]} (21. h4 $14) 21... Be7 {[%emt 0:06:07]} (21... h4 $11 {keeps the balance.}) 22. Bxe7 {[%emt 0:03:45] Weighted Error Value: White=0.11 (very precise) /Black=0.14 (very precise) .  Mistake:       	White=1     	Black=1      Inaccurate:     	White=1     	Black=1      OK:         	White=7     	Black=4} 1/2-1/2

[Event "46th Barbera del Valles Open-A 2024"]
[Site "Barbera del Valles"]
[Date "2024.07.05"]
[Round "2.9"]
[White "Valenzuela Gomez, Fernando"]
[Black "Suvradeepta, Das"]
[Result "1/2-1/2"]
[ECO "C11"]
[WhiteElo "2358"]
[BlackElo "2114"]
[Annotator "TA"]
[PlyCount "92"]
[EventDate "2024.06.25"]
[EventType "swiss"]
[EventCountry "ESP"]
[SourceTitle "playchess.com"]
[Source "ChessBase"]
[SourceQuality "1"]
[TimeControl "5400+30"]

{[%evp 20,92,0,-37,-42,-84,-76,-91,-100,-91,-81,-87,-94,-95,-93,-122,-122,-131,-122,-164,-140,-247,-129,-189,-178,-182,-93,-363,-418,-410,-409,-377,-220,-305,-68,-47,-51,-218,-231,-226,-236,-377,-372,-484,-165,-451,-448,-475,-468,-561,-324,-385,-381,-368,-338,-516,-512,-429,-318,-253,-65,-183,-35,-44,0,0,0,0,0,-92,0,0,8,0,0]} 1. e4 {[%emt 0:14:41]} e6 {[%emt 0:00:04]} 2. d4 {[%emt 0:00:28]} d5 {[%emt 0:00:09]} 3. Nc3 {[%emt 0:03:42]} Nf6 {[%emt 0:00:17]} 4. e5 {[%emt 0:00:23]} Nfd7 {[%emt 0:00:11]} 5. f4 {[%emt 0:00:19]} c5 {[%emt 0:00:16]} 6. Nf3 {[%emt 0:00:08]} Nc6 {[%emt 0:00:11]} 7. Be3 {[%emt 0:00:11]} Be7 {[%emt 0:00:31]} 8. a3 {[%emt 0:02:55] C11: French: Classical System: 4 e5 and 4 Bg5 dxe4.} a6 {[%emt 0:00:30]} 9. Bd3 {[%emt 0:00:34]} O-O {[%emt 0:12:34]} 10. O-O {[%emt 0:09:07]} f6 $146 {[%emt 0:01:48]} ({Predecessor:} 10... b5 11. dxc5 Nxc5 12. Kh1 Bb7 13. Nd4 Nxd4 14. Bxd4 Nxd3 15. cxd3 f6 16. Qg4 f5 {½-½ Sharma,D (2242)-Liyanage,R (2331) Asian Continental Blitz op 19th 2022 (3)}) 11. exf6 {[%emt 0:18:32]} Bxf6 {[%emt 0:00:23]} 12. Be2 {[%emt 0:03:06]} (12. dxc5 d4 13. Nxd4 Bxd4 (13... Nxd4 14. Bxh7+ Kxh7 15. Bxd4 $17) 14. Bxh7+ Kxh7) 12... cxd4 {[%emt 0:11:20]} 13. Nxd4 {[%emt 0:00:04]} Qb6 {[%emt 0:00:51]} 14. Na4 {[%emt 0:01:35]} Bxd4 {[%emt 0:10:15]} 15. Nxb6 {[%emt 0:00:10]} Bxe3+ {[%emt 0:00:06]} 16. Kh1 {[%emt 0:00:06]} Bxb6 {[%emt 0:04:12]} (16... Nxb6 17. Bd3 g6 18. Qe1 $15) 17. c4 {[%emt 0:00:17]} Nf6 {[%emt 0:07:11]} 18. Bd3 {[%emt 0:02:58]} Kh8 {[%emt 0:03:27]} 19. b4 {[%emt 0:08:43]} Bd7 {[%emt 0:03:32]} 20. Qe2 {[%emt 0:00:49]} (20. b5 $17 axb5 21. cxd5 exd5 22. Bxb5) 20... Rae8 {[%emt 0:02:11]} (20... dxc4 $19 21. Bxc4 Nd4) 21. Rae1 {[%emt 0:03:01]} (21. b5 $17 Ne7 22. a4) 21... e5 {[%emt 0:10:06]} 22. cxd5 {[%emt 0:00:09]} Nd4 {[%emt 0:05:06]} (22... Nxd5 23. fxe5 Nf4 (23... Rxf1+ $2 24. Rxf1 g6 25. Rf7 $18) 24. Qe4 Nxd3 25. Qxd3 $11 (25. Rxf8+ Rxf8 26. Qxd3 Nd4 $14)) (22... exf4 $19 23. Qb2 Rxe1 (23... Nxd5 24. b5 $17) 24. Rxe1 Ng4 (24... Nxd5 25. b5 $11)) 23. Qd2 $2 {[%emt 0:00:22][%mdl 8192]} (23. Qxe5 $17 Rxe5 24. fxe5) 23... e4 $19 {[%emt 0:01:18]} (23... Nxd5 24. fxe5 (24. Rxe5 Nf6 $11) 24... Be6 25. Rxf8+ Rxf8 26. Be4 $14) 24. Bc4 {[%emt 0:00:01]} Ng4 {[%emt 0:01:18]} 25. h3 {[%emt 0:00:18]} e3 {[%emt 0:00:38]} (25... Rf6 $142 {[%cal Od4f5] aiming for ...Nf5!} 26. Qd1 (26. hxg4 $2 Rh6+ 27. Kg1 Nf3#) 26... e3) 26. Qb2 {[%emt 0:00:08]} Nf2+ $2 {[%emt 0:05:15]} (26... Nf6 $19 {Hoping for ...Nh5.} 27. Kh2 Rc8) 27. Rxf2 $1 $15 {[%emt 0:00:02]} exf2 {[%emt 0:00:51]} 28. Qxf2 $2 {[%emt 0:00:02]} (28. Rxe8 $1 $15 Bxe8 (28... Rxe8 29. Qxf2 Ba7 30. Bd3 $11) 29. Qxf2) 28... Rxe1+ $19 {[%emt 0:01:27]} 29. Qxe1 {[%emt 0:00:01]} Nf5 $1 {[%emt 0:02:28]} (29... Rxf4 $2 30. Qe5 $18) 30. Bd3 {[%emt 0:01:37]} (30. Qb1 $142) 30... Re8 $1 $19 {[%emt 0:01:44]} 31. Qd2 {[%emt 0:00:01]} Ng3+ {[%emt 0:02:00]} 32. Kh2 {[%emt 0:00:07]} Be3 {[%emt 0:00:13]} 33. Qd1 {[%emt 0:00:48]} Bxf4 {[%emt 0:00:23]} 34. Qf3 {[%emt 0:00:01]} g5 {[%emt 0:06:55]} 35. Qd1 {[%emt 0:02:41]} Bf5 {[%emt 0:03:06]} 36. d6 {[%emt 0:01:31]} Bxd6 {[%emt 0:00:52]} 37. Kg1 {[%emt 0:01:04]} (37. b5 {keeps fighting.} Nh1+ 38. Kxh1 Bxd3 39. bxa6 bxa6 40. Qa1+ Be5 41. Qe1) 37... Bxd3 $19 {[%emt 0:03:19]} 38. Qxd3 {[%emt 0:00:02]} Be5 {[%emt 0:00:25]} (38... Re1+ $2 39. Kf2 Rf1+ 40. Ke3 $19) 39. Qd5 {[%emt 0:01:11]} Bg7 $2 {[%emt 0:02:00]} (39... Bf4 $19 40. Kf2 Re2+ 41. Kf3 Re3+ 42. Kf2 Ne4+ (42... Rxa3 43. Qd8+ Kg7 44. Qe7+ Kg8 45. Qe8+ Kg7 46. Qe7+ Kg8 47. Qe8+ Kg7 48. Qe7+ $11) 43. Kf1 Nd6 44. Qd4+ Kg8) 40. Kf2 {[%emt 0:06:52] [#]} ({White should try} 40. Kh2 $15 Be5 41. Kg1) 40... Ne4+ {[%emt 0:00:12]} (40... Nf5 $1 $19 {Threatens to win with ...Be5.} 41. Qd7 (41. Qxf5 $2 {loses.} Rf8 $19) 41... Rf8 (41... Bd4+ 42. Kf3 $17)) 41. Kf3 $15 {[%emt 0:00:17]} b5 {[%emt 0:00:31]} 42. Qc6 {[%emt 0:01:48]} Nd2+ {[%emt 0:00:10]} 43. Kg4 {[%emt 0:00:25]} Rf8 {[%emt 0:00:59]} 44. Qxa6 {[%emt 0:01:00] [#]} (44. Kxg5 $11 {keeps the balance.} h6+ 45. Kh5) 44... Nc4 {[%emt 0:00:41]} (44... Ne4 $1 $17 {( -> ...Rf4+)} 45. Kh5 Ng3+ 46. Kg4 Be5) 45. Qxb5 {[%emt 0:00:32]} Nxa3 {[%emt 0:00:07]} 46. Qd3 {[%emt 0:00:43]} Nc4 $1 {[%emt 0:00:50]} 1/2-1/2

[Event "46th Barbera del Valles Open-A 2024"]
[Site "Barbera del Valles"]
[Date "2024.07.05"]
[Round "2.10"]
[White "Nagare Kaivalya Sandip"]
[Black "Lazaro Pujol, Abel"]
[Result "1/2-1/2"]
[ECO "C78"]
[WhiteElo "2109"]
[BlackElo "2356"]
[Annotator "TA"]
[PlyCount "57"]
[EventDate "2024.06.25"]
[EventType "swiss"]
[EventCountry "ESP"]
[SourceTitle "playchess.com"]
[Source "ChessBase"]
[SourceQuality "1"]
[TimeControl "5400+30"]

{[%evp 15,57,32,18,24,21,15,13,30,31,14,15,0,0,0,0,0,0,0,0,0,89,0,0,0,0,0,0,0,0,0,0,0,0,0,0,0,0,0,0,0,0,0,0,0]} 1. e4 {[%emt 0:00:11]} e5 {[%emt 0:03:40]} 2. Nf3 {[%emt 0:00:03]} Nc6 {[%emt 0:00:10]} 3. Bb5 {[%emt 0:00:06]} a6 {[%emt 0:00:15]} 4. Ba4 {[%emt 0:00:03]} Nf6 {[%emt 0:00:08]} 5. O-O {[%emt 0:00:05]} b5 {[%emt 0:00:30]} 6. Bb3 {[%emt 0:00:06]} Bc5 {[%emt 0:00:07]} 7. a4 {[%emt 0:00:04]} Rb8 {[%emt 0:00:28]} 8. axb5 {[%emt 0:00:05]} axb5 {[%emt 0:00:12] [#]} 9. Nxe5 $1 {[%emt 0:00:02]} Nxe5 {[%emt 0:00:53]} 10. d4 {[%emt 0:00:09]} Bxd4 {[%emt 0:00:06]} 11. Qxd4 {[%emt 0:00:08]} d6 {[%emt 0:00:05]} 12. f4 {[%emt 0:00:03]} Nc6 {[%emt 0:00:26][%cal Be5c6,Bc6e7,Be7d5][%mdl 32]} 13. Qc3 {[%emt 0:00:04]} (13. Qd3 {vereinfacht} O-O 14. c3 Be6 15. Bxe6 fxe6 16. Nd2) 13... Ne7 {[%emt 0:01:46][%cal Oe8g8]} 14. Ra7 {[%emt 0:00:04] [#] Und e5 würde nun gewinnen.} c5 {[%emt 0:00:56][%cal Oc5c4] Droht stark ...c4!} 15. e5 {[%emt 0:00:06]} Nfd5 {[%emt 0:03:15]} 16. Bxd5 {[%emt 0:00:08]} Nxd5 {[%emt 0:00:20]} 17. Qf3 {[%emt 0:00:05]} c4 {[%emt 0:01:40]} (17... Qb6 $11 18. Ra1 Bb7) 18. Kh1 {[%emt 0:12:59] Weiß steht aktiver.} (18. Qxd5 $6 Qb6+ 19. Kh1 Qxa7 20. Qxd6 Qb6 $15) (18. Rd1 $16 Qb6+ 19. Qf2 Qxf2+ 20. Kxf2) 18... Qb6 $11 {[%emt 0:01:03] Die Stellung ist ausgeglichen.} 19. Rxf7 {[%emt 0:01:04]} Kxf7 {[%emt 0:00:06]} 20. Qxd5+ {[%emt 0:00:02]} Be6 {[%emt 0:00:07]} 21. Qd1 {[%emt 0:00:16]} Bf5 $1 {[%emt 0:00:06]} (21... dxe5 $2 22. f5 Rhd8 (22... Bc8 $2 23. Qh5+ Kf8 24. f6 $18) 23. fxe6+ Kg8 24. Qg4 $18) 22. Qd5+ {[%emt 0:00:07]} Be6 {[%emt 0:00:19]} 23. Qd1 {[%emt 0:00:17] Und jetzt f5 wäre schön.} Bf5 $1 {[%emt 0:18:31]} (23... dxe5 $2 24. f5 Rhd8 (24... Bc8 $2 25. Qh5+ Kf8 26. f6 $18) 25. fxe6+ Kg8 26. Qg4 $18) 24. Qd5+ {[%emt 0:00:07]} Be6 {[%emt 0:00:40]} 25. Qd1 {[%emt 0:00:06] Schwarz muss nun f5 beachten.} Bf5 $1 {[%emt 0:07:02]} ({Nicht} 25... dxe5 $2 26. f5 Rhd8 (26... Bc8 $2 27. Qh5+ Kf8 28. f6 $18) 27. fxe6+ Kg8 28. Qg4 $18) 26. Qd5+ {[%emt 0:09:46]} Be6 {[%emt 0:00:59]} 27. Qd1 {[%emt 0:00:07] f5 ist eine echte Drohung.} Bf5 $1 {[%emt 0:08:26]} (27... dxe5 28. f5 Rhd8 (28... Bc8 $2 29. Qh5+ Kf8 30. f6 $18) 29. fxe6+ Kg8 30. Qe2 (30. Qg4 Rf8 $18) 30... Qxe6 31. b3) 28. Qd5+ {[%emt 0:06:12]} Be6 {[%emt 0:02:27]} 29. Qd1 {[%emt 0:00:08] Ein ziemlich ruhiges Remis.   Gewichteter Fehlerwert: Weiß=0.06 (makellos) /Schwarz=0.05 (makellos) .  Fehler:       	Weiß=1     	Schwarz=1     OK:         	Weiß=11    	Schwarz=6     Bester:       	Weiß=2     	Schwarz=6     Stark:        	---       	Schwarz=4} 1/2-1/2